bitfinex-derivatives/quotes_ETHF0:USTF0_20241231
["timestamp","ask_amount","ask_price","bid_price","bid_amount"]
[1735665289716,0.294,3407.7,3407.6,0.29398]
[1735665289912,0.29402,3407.6,3407.5,0.294]
[1735665290113,0.29402,3407.5,3407.4,0.294]
[1735665290322,0.29404,3407.3,3407.2,0.29402]
[1735665290514,1.03630563,3407.3,3406.9,1.197]
[1735665290819,1.33036563,3407.0,3406.9,0.29405]
[1735665292224,0.29406,3407.0,3406.9,0.29405]
[1735665292516,7.21193133,3407.0,3406.9,0.29405]
[1735665293615,6.91787133,3407.0,3406.9,0.29405]
[1735665295311,0.4409,3407.2,3406.6,3.09315719]
[1735665295517,0.4409,3407.2,3407.1,0.29404]
[1735665295714,0.73493,3407.2,3407.1,0.29404]
[1735665295910,3.6487,3407.2,3407.1,0.29404]
[1735665296207,8.26025268,3407.2,3407.1,0.29404]
[1735665297411,3.6487,3407.2,3407.1,0.29404]
[1735665297818,0.4409,3407.2,3407.1,0.29404]
[1735665299814,3.6487,3407.2,3407.1,0.29404]
[1735665301620,3.2078,3407.2,3407.1,0.29404]
[1735665301921,3.2078,3407.2,3407.1,1.49104]
[1735665302819,4.61155268,3407.4,3407.3,0.29403]
[1735665303319,3.2078,3407.8,3407.2,0.73508]
[1735665303526,3.50179,3407.8,3407.7,0.29399]
[1735665303818,3.2078,3407.8,3407.7,0.29399]
[1735665304123,4.61155268,3407.9,3407.8,0.29398]
[1735665304524,5.76444085,3407.9,3407.8,0.29398]
[1735665304917,5.76444085,3407.9,3407.6,0.29399]
[1735665305217,3.2078,3407.7,3406.7,3.2078]
[1735665305411,0.29405,3407.1,3407.0,0.29405]
[1735665305616,0.29406,3407.0,3406.9,0.29405]
[1735665305823,0.8758,3407.0,3406.8,4.88926406]
[1735665306124,3.50186,3406.9,3406.8,4.59519406]
[1735665306317,5.85980719,3406.9,3406.8,4.59519406]
[1735665306520,5.85980719,3406.9,3406.8,3.89879406]
[1735665306724,10.17253047,3406.9,3406.5,0.29409]
[1735665306918,0.29409,3406.6,3406.5,0.29409]
[1735665307119,0.29411,3406.4,3406.3,0.29411]
[1735665307318,3.50191,3406.4,3406.3,0.29411]
[1735665307519,3.2078,3406.4,3406.3,0.29411]
[1735665307712,0.29408,3406.7,3406.6,0.29409]
[1735665307917,0.29409,3406.6,3406.5,0.29409]
[1735665308720,7.81458328,3406.7,3405.9,2.35794719]
[1735665308922,0.29409,3406.6,3406.5,0.29409]
[1735665309120,7.81458328,3406.7,3406.5,0.29409]
[1735665309324,3.2078,3406.7,3406.6,0.29409]
[1735665309721,3.6706,3406.7,3406.6,0.29409]
[1735665311318,3.96468,3406.7,3406.6,0.29409]
[1735665312329,3.6706,3406.7,3406.1,0.4239]
[1735665312533,0.29413,3406.1,3405.9,0.29414]
[1735665312824,0.8691,3406.0,3405.9,0.29414]
[1735665313426,0.8691,3406.0,3405.5,1.6506]
[1735665313628,3.2078,3405.8,3405.3,0.4531]
[1735665313836,0.29417,3405.7,3405.6,0.29417]
[1735665314146,3.2078,3405.8,3405.3,0.4531]
[1735665314332,3.50199,3405.5,3405.1,0.4536]
[1735665314528,3.2078,3405.5,3405.4,0.29419]
[1735665315030,3.50199,3405.5,3405.4,0.29419]
[1735665315229,3.2078,3405.5,3404.9,0.4568]
[1735665315433,3.2078,3405.5,3404.7,0.4321]
[1735665315434,0.29421,3405.2,3405.1,0.29421]
[1735665316029,0.29421,3405.2,3404.7,0.4321]
[1735665316030,0.4423,3405.3,3404.7,0.4321]
[1735665316235,0.4423,3405.3,3405.2,0.29421]
[1735665316635,3.2078,3405.5,3405.4,0.29419]
[1735665316834,4.60678328,3405.8,3405.7,0.29416]
[1735665317334,4.60678328,3405.8,3405.5,0.8889]
[1735665317335,7.81458328,3406.3,3406.2,0.29412]
[1735665318535,3.2078,3406.3,3406.2,0.29412]
[1735665318733,3.50191,3406.3,3406.2,0.29412]
[1735665318934,3.2078,3406.3,3406.2,0.29412]
[1735665321339,0.4511,3406.5,3406.4,0.2941]
[1735665322434,3.2078,3406.7,3406.1,0.8761]
[1735665322640,3.50188,3406.7,3406.6,0.29409]
[1735665323339,3.2078,3406.7,3406.1,0.8761]
[1735665323538,0.2941,3406.5,3406.4,0.29409]
[1735665324134,3.2078,3406.7,3406.1,0.8761]
[1735665324443,0.29409,3406.6,3406.5,0.29409]
[1735665325034,0.71649,3406.6,3406.5,0.29409]
[1735665325236,0.4224,3406.6,3406.5,0.29409]
[1735665329146,0.71649,3406.6,3406.5,0.29409]
[1735665329344,0.4224,3406.6,3406.1,0.8761]
[1735665329541,0.4332,3406.5,3406.4,0.2941]
[1735665330743,0.4332,3406.5,3406.3,0.29411]
[1735665330941,0.73951,3406.4,3406.3,0.29411]
[1735665331436,0.4454,3406.4,3406.3,0.29411]
[1735665332843,0.4224,3406.6,3406.0,2.35794719]
[1735665333057,0.4224,3406.6,3406.5,0.29409]
[1735665334342,0.71649,3406.6,3406.5,0.29409]
[1735665335344,0.4224,3406.6,3406.5,0.29409]
[1735665336348,0.71649,3406.6,3406.5,0.29409]
[1735665337049,0.4224,3406.6,3406.5,0.29409]
[1735665338251,0.71649,3406.6,3406.5,0.29409]
[1735665339147,0.71649,3406.6,3405.8,1.6181]
[1735665339148,0.4224,3406.6,3405.8,1.6181]
[1735665339357,0.29412,3406.3,3406.2,0.29411]
[1735665339655,0.4224,3406.6,3405.8,2.35349]
[1735665339850,0.29411,3406.4,3406.3,0.2941]
[1735665340447,0.4224,3406.6,3406.0,0.73535]
[1735665340655,0.29146884,3406.5,3406.4,0.29409]
[1735665342256,0.4224,3406.6,3406.5,0.29409]
[1735665342257,0.71649,3406.6,3406.5,0.29409]
[1735665344355,0.4224,3406.6,3406.5,0.29409]
[1735665345661,0.71649,3406.6,3406.5,0.29409]
[1735665345961,0.71649,3406.6,3405.9,0.29413]
[1735665345962,0.29415,3406.0,3405.9,0.29413]
[1735665346255,3.94314,3406.1,3405.4,6.93065299]
[1735665346460,3.50198,3405.6,3405.5,0.29417]
[1735665346660,3.50198,3405.6,3405.4,7.22483299]
[1735665346661,0.29418,3405.5,3405.4,7.22483299]
[1735665347050,0.29418,3405.5,3405.4,6.93065299]
[1735665347249,3.50198,3405.6,3405.5,0.29418]
[1735665348157,4.60678328,3405.8,3405.5,0.29418]
[1735665348363,4.60678328,3405.8,3405.7,0.29416]
[1735665348762,0.886,3406.0,3405.9,0.29415]
[1735665348957,1.18014,3406.0,3405.9,0.29415]
[1735665349160,0.886,3406.0,3405.9,0.29415]
[1735665350658,1.18014,3406.0,3405.9,0.29415]
[1735665351961,5.78692328,3406.0,3405.9,0.29415]
[1735665353057,0.73537,3405.9,3405.1,1.59193]
[1735665353357,3.2078,3405.5,3404.9,1.197]
[1735665353560,0.29422,3405.2,3405.1,0.29421]
[1735665355263,0.29421,3405.3,3405.2,0.2942]
[1735665355564,0.29421,3405.2,3405.1,0.29421]
[1735665355767,0.29423,3405.1,3405.0,0.29422]
[1735665355967,3.50203,3405.1,3405.0,0.29422]
[1735665356170,3.2078,3405.1,3404.6,1.197]
[1735665356469,0.29424,3404.9,3404.8,0.29423]
[1735665357072,3.2078,3405.1,3404.6,1.197]
[1735665357371,0.29423,3405.0,3404.9,0.29423]
[1735665357573,0.29425,3404.8,3404.7,0.29424]
[1735665357766,0.4568,3404.9,3404.6,1.197]
[1735665358069,0.29427,3404.6,3404.5,0.29426]
[1735665358264,3.2078,3404.7,3404.0,0.4208]
[1735665358463,0.72377,3404.5,3404.4,0.29428]
[1735665360067,0.4295,3404.5,3404.4,0.29428]
[1735665362670,0.72377,3404.5,3404.4,0.29428]
[1735665362870,0.4295,3404.5,3404.4,0.29428]
[1735665367381,0.29429,3404.3,3404.2,0.29429]
[1735665367571,3.50209,3404.3,3404.2,0.29429]
[1735665368671,3.2078,3404.3,3404.2,0.29429]
[1735665369276,3.2078,3404.3,3404.0,0.2943]
[1735665369467,0.29431,3404.1,3404.0,0.2943]
[1735665369674,0.29433,3403.9,3403.8,0.29432]
[1735665370474,3.50213,3403.9,3403.8,0.29432]
[1735665370882,3.2078,3403.9,3403.8,0.29432]
[1735665371372,3.2078,3403.9,3403.6,0.29434]
[1735665371373,5.56574719,3403.9,3403.6,0.29434]
[1735665371578,5.56574719,3403.9,3403.6,0.29435]
[1735665371579,0.29434,3403.7,3403.6,0.29435]
[1735665371876,0.29434,3403.7,3403.1,0.73598]
[1735665372179,0.8499,3403.8,3403.0,0.4277]
[1735665372372,3.2078,3403.5,3403.0,0.4277]
[1735665372567,3.2078,3403.5,3403.4,0.29436]
[1735665373878,3.2078,3403.5,3402.8,0.446]
[1735665373879,0.29437,3403.3,3402.8,0.446]
[1735665374071,0.4268,3403.2,3402.7,0.73606]
[1735665374382,0.4184,3403.1,3402.6,3.6258]
[1735665374677,0.71279,3403.1,3403.0,0.2944]
[1735665375073,1.16209,3403.1,3403.0,0.2944]
[1735665375478,0.2944,3403.0,3402.9,0.2944]
[1735665376070,0.8677,3403.1,3402.6,3.6258]
[1735665376275,0.8677,3403.1,3403.0,0.2944]
[1735665377068,1.16209,3403.1,3403.0,0.2944]
[1735665377268,0.29441,3402.9,3402.4,0.73613]
[1735665377475,0.29441,3402.9,3401.1,0.73641]
[1735665377476,3.2078,3402.5,3401.1,0.73641]
[1735665377677,3.2078,3401.7,3401.6,0.29452]
[1735665379278,3.2078,3402.5,3401.6,5.0]
[1735665379574,3.2078,3402.5,3402.4,0.29445]
[1735665382773,0.4382,3403.0,3402.9,0.29441]
[1735665382986,3.2078,3403.1,3403.0,0.2944]
[1735665383178,3.2078,3403.1,3403.0,0.7468]
[1735665383378,3.2078,3403.1,3403.0,1.1996]
[1735665383776,0.29435,3403.6,3403.1,0.29439]
[1735665384085,3.2078,3403.2,3403.1,0.29439]
[1735665386287,0.29439,3403.1,3403.0,0.74719]
[1735665386587,3.2078,3403.2,3403.1,0.29439]
[1735665387285,0.4613,3403.4,3403.3,0.29437]
[1735665387481,0.75566,3403.4,3403.3,0.29437]
[1735665388283,0.4613,3403.4,3403.0,0.4528]
[1735665388477,0.29439,3403.1,3403.0,0.29439]
[1735665388985,3.2078,3403.2,3402.5,0.4634]
[1735665389292,3.2078,3403.2,3403.1,0.29439]
[1735665393184,3.2078,3403.2,3403.0,0.29439]
[1735665393385,0.2944,3403.0,3402.9,0.2944]
[1735665393781,3.2078,3403.2,3402.5,0.4634]
[1735665393782,5.56574719,3403.2,3402.5,0.4634]
[1735665393988,3.2078,3402.7,3402.6,0.29443]
[1735665394185,3.50222,3402.7,3402.6,0.29443]
[1735665394384,3.639,3402.7,3401.6,3.2078]
[1735665394592,0.29447,3402.2,3402.1,0.29447]
[1735665394984,0.74047,3402.2,3402.1,0.29447]
[1735665395195,0.446,3402.2,3401.7,0.73628]
[1735665395387,3.2078,3401.9,3401.6,0.9013]
[1735665395589,3.2078,3401.9,3401.8,0.2945]
[1735665396595,3.50229,3401.9,3401.8,0.2945]
[1735665397400,0.29451,3401.8,3401.7,0.2945]
[1735665397892,3.2078,3401.9,3401.6,0.29451]
[1735665398093,3.2078,3401.9,3401.5,0.29452]
[1735665398292,2.35794719,3401.7,3401.2,0.8888]
[1735665398595,3.2078,3401.5,3401.2,0.434]
[1735665398997,3.2078,3401.5,3401.4,0.29454]
[1735665399589,0.4301,3402.1,3401.2,2.79194719]
[1735665399893,3.2078,3402.2,3402.1,0.29448]
[1735665400691,4.60678328,3402.7,3402.6,0.29443]
[1735665400897,0.4257,3402.8,3402.7,0.29442]
[1735665401887,0.72011,3402.8,3402.7,0.29442]
[1735665402201,3.07805719,3402.8,3402.7,0.29442]
[1735665402395,0.29444,3402.6,3402.5,0.29443]
[1735665402693,3.2078,3402.6,3401.9,1.6546]
[1735665402895,0.29446,3402.3,3402.2,0.29446]
[1735665403199,3.50223,3402.7,3402.6,0.29443]
[1735665403885,3.2078,3402.7,3402.6,0.29443]
[1735665405690,3.09273719,3403.1,3402.4,0.4419]
[1735665405691,3.2078,3403.1,3403.0,0.2944]
[1735665406697,5.04108328,3403.7,3403.6,0.29435]
[1735665406698,3.2078,3403.7,3403.6,0.29435]
[1735665415002,3.2078,3404.1,3403.6,5.0]
[1735665415207,4.60678328,3404.3,3404.2,0.29429]
[1735665415704,4.60678328,3404.3,3404.2,3.50209]
[1735665416099,7.81458328,3405.0,3404.2,3.2078]
[1735665416299,7.81458328,3405.0,3404.9,0.29423]
[1735665417604,3.2078,3405.0,3404.9,0.29423]
[1735665418008,3.2078,3405.2,3404.5,0.73566]
[1735665418307,3.2078,3405.2,3405.1,0.29422]
[1735665418917,0.9206,3405.5,3405.4,0.29419]
[1735665419211,0.9206,3405.5,3404.9,0.4271]
[1735665419523,3.50201,3405.2,3405.1,0.29422]
[1735665420003,3.2078,3405.2,3405.1,0.29422]
[1735665420209,0.9206,3405.5,3404.9,0.4271]
[1735665420409,0.9206,3405.5,3405.0,0.73556]
[1735665420704,3.2078,3405.2,3405.1,0.29422]
[1735665420909,3.50201,3405.2,3405.1,0.29422]
[1735665421517,3.2078,3405.2,3404.9,0.4271]
[1735665421704,3.2078,3405.2,3404.5,1.196]
[1735665422013,3.50205,3404.8,3404.7,0.29425]
[1735665422409,3.2078,3404.8,3404.1,0.4266]
[1735665422712,3.50209,3404.3,3404.2,0.29429]
[1735665422910,3.2078,3404.3,3403.6,0.4266]
[1735665423110,3.2078,3403.9,3403.6,0.4266]
[1735665423310,3.50212,3403.9,3403.8,0.29433]
[1735665423508,0.29434,3403.7,3403.6,0.29434]
[1735665423813,0.4265,3403.8,3403.7,0.29434]
[1735665425036,0.72083,3403.8,3403.7,0.29434]
[1735665425913,0.72084,3403.8,3403.7,0.29434]
[1735665426309,0.4265,3403.8,3403.7,0.29434]
[1735665426509,3.2078,3403.9,3403.8,0.29433]
[1735665427414,3.50212,3403.9,3403.8,0.29433]
[1735665428008,3.2078,3403.9,3403.2,1.196]
[1735665428207,0.29437,3403.4,3403.3,0.29436]
[1735665428407,3.50216,3403.5,3403.4,0.29436]
[1735665429113,0.29438,3403.4,3403.3,0.29437]
[1735665429314,3.2078,3403.5,3403.4,0.29436]
[1735665431215,3.50215,3403.5,3403.4,0.29436]
[1735665431511,3.2078,3403.5,3403.4,0.29436]
[1735665431704,3.50215,3403.5,3403.4,0.29436]
[1735665434513,0.29436,3403.4,3403.0,0.2944]
[1735665434814,0.29444,3402.6,3402.4,0.29444]
[1735665435119,0.29444,3402.6,3402.3,0.4606]
[1735665435120,5.57090575,3402.7,3401.9,0.4561]
[1735665435313,0.4463,3402.5,3401.9,0.4561]
[1735665435619,0.74075,3402.5,3402.3,0.29445]
[1735665435922,0.8804,3402.6,3401.9,0.4561]
[1735665435923,0.4464,3402.6,3402.5,0.29444]
[1735665436217,0.74083,3402.6,3402.5,0.29444]
[1735665437719,0.29446,3402.3,3402.2,0.29446]
[1735665438218,0.29446,3402.3,3401.9,0.4561]
[1735665438219,0.29442,3402.8,3402.7,0.29442]
[1735665438414,3.50222,3402.8,3402.7,0.29442]
[1735665439028,3.2078,3402.8,3402.7,0.29442]
[1735665439318,3.50221,3402.8,3402.7,0.29442]
[1735665441818,3.2078,3402.8,3402.7,0.29442]
[1735665442421,3.50221,3402.8,3402.7,0.29442]
[1735665443315,3.2078,3402.8,3402.7,0.29442]
[1735665443923,3.2078,3403.4,3403.3,0.29436]
[1735665444120,0.2944,3403.1,3403.0,0.29439]
[1735665444424,0.29441,3402.9,3402.8,0.29441]
[1735665444721,3.2078,3403.0,3402.9,0.29441]
[1735665445223,3.5022,3403.0,3402.9,0.29441]
[1735665446015,3.2078,3403.0,3402.6,0.4339]
[1735665446324,0.29443,3402.8,3402.7,0.29442]
[1735665446918,0.8563,3402.9,3402.8,0.29441]
[1735665447518,1.15071,3402.9,3402.8,0.29441]
[1735665448218,3.2078,3403.0,3402.5,0.4352]
[1735665448419,3.2078,3403.0,3402.9,0.29441]
[1735665448621,3.5022,3403.0,3402.9,0.29441]
[1735665449829,3.2078,3403.0,3402.9,0.29441]
[1735665450228,3.2078,3403.0,3402.7,0.29441]
[1735665450229,0.29442,3402.8,3402.7,0.29441]
[1735665450626,0.871,3402.9,3402.5,0.4352]
[1735665450822,3.5022,3403.0,3402.9,0.29441]
[1735665451731,0.29442,3402.9,3402.8,0.29441]
[1735665452231,3.5022,3403.0,3402.9,0.29441]
[1735665453733,3.2078,3403.0,3402.5,1.17131]
[1735665453932,3.2078,3403.0,3402.9,0.29441]
[1735665454826,3.2078,3403.4,3402.9,0.29441]
[1735665455027,3.50217,3403.4,3403.3,0.29437]
[1735665455329,3.2078,3403.4,3403.3,0.29437]
[1735665457227,0.4487,3403.7,3403.6,0.29435]
[1735665457426,3.2078,3403.8,3403.7,0.29434]
[1735665457831,3.2078,3403.8,3403.7,2.65744575]
[1735665458028,3.2078,3403.8,3403.7,0.29434]
[1735665458336,3.2078,3403.8,3403.7,0.71544]
[1735665458934,4.89504824,3404.2,3403.7,0.71544]
[1735665458935,4.89504824,3404.2,3404.1,0.2943]
[1735665459335,0.2943,3404.2,3404.1,0.2943]
[1735665460338,0.29431,3404.1,3404.0,0.2943]
[1735665460731,0.29432,3404.0,3403.9,0.29431]
[1735665461046,2.36310575,3404.2,3402.8,2.80900575]
[1735665461234,0.29435,3403.6,3403.5,0.29435]
[1735665462431,3.50214,3403.7,3403.6,0.29435]
[1735665464251,3.2078,3403.7,3403.2,0.418]
[1735665464439,0.2944,3403.0,3402.9,0.2944]
[1735665464734,0.29443,3402.7,3402.6,0.29443]
[1735665464939,3.50223,3402.7,3402.6,0.29443]
[1735665465337,3.2078,3402.7,3402.6,0.29443]
[1735665467533,0.29445,3402.4,3402.3,0.29445]
[1735665467837,3.2078,3402.7,3402.5,0.29443]
[1735665468042,0.29444,3402.6,3402.5,0.29443]
[1735665468542,7.80854824,3402.7,3402.0,0.8696]
[1735665469044,0.29444,3402.6,3402.5,0.29443]
[1735665469940,3.50223,3402.7,3402.6,0.29443]
[1735665471943,3.2078,3402.7,3402.6,0.29443]
[1735665472338,3.50222,3402.7,3402.6,0.29443]
[1735665472644,3.2078,3402.7,3402.6,0.29443]
[1735665478645,3.50222,3402.7,3402.6,0.29443]
[1735665479147,3.2078,3402.7,3402.6,0.29443]
[1735665485949,3.50222,3402.7,3402.6,0.29443]
[1735665486765,3.2078,3402.7,3402.2,0.73617]
[1735665486949,3.2078,3402.7,3402.6,0.29443]
[1735665487550,3.2078,3402.7,3402.6,0.29642949]
[1735665487951,3.50222,3402.7,3402.6,0.00199949]
[1735665488358,3.94542,3402.7,3402.6,0.00199949]
[1735665488548,8.54616824,3402.7,3402.6,0.29642949]
[1735665488851,8.54616824,3402.7,3402.6,0.00199949]
[1735665489449,8.54616824,3402.7,3402.6,0.29642949]
[1735665490759,7.80854824,3402.7,3402.6,0.29642949]
[1735665491256,3.2078,3402.7,3402.6,0.29642949]
[1735665492654,3.50222,3402.7,3402.6,0.29642949]
[1735665492852,3.2078,3402.7,3402.6,0.29642949]
[1735665493553,3.50222,3402.7,3402.6,0.29642949]
[1735665495251,3.50222,3402.7,3402.6,0.00199949]
[1735665495759,3.50222,3402.7,3402.6,0.29642949]
[1735665495955,3.50222,3402.7,3402.6,0.00199949]
[1735665496559,3.50222,3402.7,3402.6,0.29642949]
[1735665496761,8.10296824,3402.7,3402.6,0.29642949]
[1735665497864,3.50222,3402.7,3402.6,0.29642949]
[1735665500866,3.50222,3402.7,3402.6,0.00199949]
[1735665501059,3.50222,3402.7,3402.6,0.29642949]
[1735665503758,3.50222,3402.7,3402.6,0.00199949]
[1735665504263,3.50222,3402.7,3402.6,0.29642949]
[1735665505364,8.10296824,3402.7,3402.6,0.29642949]
[1735665506064,3.50222,3402.7,3402.6,0.29642949]
[1735665507962,9.26666085,3402.7,3402.6,0.29642949]
[1735665509358,9.26666085,3402.7,3402.6,0.00199949]
[1735665510164,9.71996085,3402.7,3402.6,0.00199949]
[1735665510367,3.95552,3402.7,3402.6,0.00199949]
[1735665515769,3.6611,3402.7,3401.9,4.57998246]
[1735665515972,3.50228,3402.0,3401.9,4.57998246]
[1735665516566,3.50228,3402.0,3401.9,4.87447246]
[1735665516774,3.2078,3402.0,3401.9,4.87447246]
[1735665517370,3.2078,3402.0,3401.9,0.29449]
[1735665518770,4.63501143,3402.1,3401.8,4.57998246]
[1735665518977,4.63501143,3402.1,3402.0,0.29448]
[1735665519178,4.63501143,3402.1,3402.0,1.49048]
[1735665519769,3.93611194,3402.1,3402.0,8.85358575]
[1735665519974,3.93611194,3402.3,3402.2,0.29447]
[1735665520771,3.2078,3402.5,3402.4,0.29445]
[1735665521572,5.79376429,3402.8,3402.4,0.29445]
[1735665521773,5.79376429,3402.8,3402.7,0.29442]
[1735665522175,5.19016429,3402.9,3402.8,0.29441]
[1735665522366,2.13728429,3402.9,3402.8,0.29441]
[1735665522573,6.95415239,3403.3,3403.2,0.29438]
[1735665522768,4.54808239,3403.3,3403.2,5.86528575]
[1735665522971,2.27427239,3403.3,3403.2,10.86528575]
[1735665523575,0.4434,3404.2,3404.1,0.2943]
[1735665523900,0.4434,3404.2,3404.1,1.4893]
[1735665525079,0.7377,3404.2,3404.0,0.2943]
[1735665525272,0.434,3404.1,3404.0,0.2943]
[1735665528673,0.29432,3404.0,3403.9,0.29431]
[1735665528984,0.71812,3404.0,3403.9,0.29431]
[1735665529880,0.4238,3404.0,3403.9,0.29431]
[1735665530380,0.434,3404.1,3403.6,1.93086]
[1735665530581,0.434,3404.1,3404.0,0.29431]
[1735665536987,2.80650575,3404.2,3404.1,0.2943]
[1735665537888,0.29432,3403.9,3403.6,1.195]
[1735665538088,0.9021,3403.8,3403.6,1.195]
[1735665538387,0.9021,3403.8,3403.7,0.29434]
[1735665539695,1.19643,3403.8,3403.7,0.29434]
[1735665540186,0.9021,3403.8,3403.7,0.29434]
[1735665540584,1.19643,3403.8,3403.7,0.29434]
[1735665541094,0.9021,3403.8,3403.7,0.29434]
[1735665541279,1.19643,3403.8,3403.7,0.29434]
[1735665541691,0.9021,3403.8,3403.7,0.29434]
[1735665542188,1.19643,3403.8,3403.7,0.29434]
[1735665543182,0.9021,3403.8,3403.7,0.29434]
[1735665543791,1.19643,3403.8,3403.7,0.29434]
[1735665544584,0.29435,3403.6,3403.5,0.29434]
[1735665544792,2.36310575,3403.6,3403.2,3.2078]
[1735665544994,2.36310575,3403.6,3403.2,0.29437]
[1735665544995,0.29437,3403.3,3403.2,0.29437]
[1735665545283,0.29437,3403.3,3402.9,1.93101]
[1735665545284,3.6559,3403.5,3402.9,1.93101]
[1735665545484,0.8902,3403.2,3403.1,0.29439]
[1735665546890,0.883,3403.5,3403.4,0.29436]
[1735665549291,0.4481,3403.5,3403.4,0.29436]
[1735665551899,0.4352,3403.8,3403.7,0.29434]
[1735665552096,0.9131,3403.9,3403.4,7.65746575]
[1735665552393,0.4537,3403.9,3403.8,0.29433]
[1735665556097,3.2078,3404.0,3403.5,0.73588]
[1735665556302,3.2078,3404.0,3403.9,0.29432]
[1735665557902,0.4295,3404.3,3403.8,0.73581]
[1735665558100,0.4295,3404.3,3404.2,0.29429]
[1735665558305,0.4295,3404.3,3404.2,1.48829]
[1735665558799,0.8514,3404.3,3404.2,1.48829]
[1735665559199,3.2078,3404.5,3404.4,0.29428]
[1735665565207,3.2078,3405.0,3404.9,0.29423]
[1735665565405,3.2078,3405.0,3404.9,3.85133575]
[1735665565804,0.4437,3405.3,3405.2,0.29421]
[1735665566112,0.4617,3405.5,3405.4,0.29419]
[1735665566413,0.8693,3405.9,3405.8,0.29416]
[1735665566610,1.331,3405.9,3405.8,0.29416]
[1735665567204,0.8873,3405.9,3405.8,0.29416]
[1735665567411,3.2078,3406.0,3405.8,2.36310575]
[1735665567604,3.2078,3406.0,3405.9,0.29415]
[1735665569407,0.4367,3406.2,3406.1,0.29413]
[1735665573310,0.4367,3406.2,3406.1,2.65723575]
[1735665573514,0.4253,3406.4,3406.3,0.29411]
[1735665573818,0.4253,3406.4,3406.3,1.48811]
[1735665578820,0.4253,3406.4,3406.3,4.69591]
[1735665579121,3.2078,3407.3,3406.3,4.4018]
[1735665579323,1.3553,3407.2,3407.1,0.29404]
[1735665580611,1.3553,3407.2,3407.1,2.65714575]
[1735665582118,1.3553,3407.2,3407.1,0.29404]
[1735665585417,2.36310575,3407.1,3405.8,3.2078]
[1735665585722,3.2078,3406.3,3406.2,0.29412]
[1735665585923,0.29413,3406.2,3405.9,1.193]
[1735665586123,1.61823,3406.2,3406.1,0.29413]
[1735665586319,1.3241,3406.2,3406.1,0.29413]
[1735665586628,1.3241,3406.2,3406.0,0.29413]
[1735665586925,1.61823,3406.2,3406.0,0.29413]
[1735665587140,0.29413,3406.1,3406.0,0.29413]
[1735665587928,0.29415,3406.0,3405.9,0.29415]
[1735665588523,3.68720575,3406.2,3405.2,0.73551]
[1735665588723,0.29417,3405.6,3405.5,0.29418]
[1735665589123,3.2078,3405.8,3405.2,1.193]
[1735665589323,3.50196,3405.8,3405.7,0.29416]
[1735665589522,3.2078,3405.8,3405.2,1.92851]
[1735665589732,0.29417,3405.7,3405.6,0.29417]
[1735665590024,3.2078,3405.8,3405.2,1.92851]
[1735665590229,3.2078,3405.8,3405.7,0.29416]
[1735665591726,3.6291,3405.8,3405.7,0.29416]
[1735665593125,3.6291,3405.8,3405.3,1.193]
[1735665593325,0.29421,3405.2,3405.1,0.29421]
[1735665593525,3.2078,3405.4,3404.9,1.193]
[1735665593526,0.29422,3405.0,3404.9,1.193]
[1735665593721,5.57090575,3405.0,3404.1,5.33836624]
[1735665594033,0.8602,3405.1,3404.5,0.29427]
[1735665594034,3.2078,3404.6,3404.5,0.29427]
[1735665594433,3.2078,3404.6,3404.4,0.29427]
[1735665594634,0.8443,3404.5,3404.4,0.29427]
[1735665599038,0.8443,3404.5,3404.2,1.193]
[1735665599039,0.8443,3404.5,3404.3,0.29428]
[1735665599335,0.4593,3404.4,3404.3,0.29428]
[1735665599637,0.8443,3404.5,3404.4,0.29428]
[1735665600339,0.423,3404.5,3404.4,2.65738575]
[1735665600638,3.2078,3405.0,3404.9,0.29423]
[1735665601430,3.2078,3405.0,3404.4,3.2078]
[1735665601637,0.29423,3404.9,3404.7,0.29425]
[1735665602140,0.4396,3404.8,3404.7,0.29425]
[1735665607239,3.2078,3405.0,3404.9,0.29423]
[1735665607438,3.2078,3405.4,3405.3,0.2942]
[1735665609841,5.57090575,3405.4,3405.3,0.2942]
[1735665610034,0.2942,3405.3,3405.1,0.29421]
[1735665610240,0.2942,3405.3,3404.5,2.51496]
[1735665610241,0.29421,3405.2,3405.0,0.29422]
[1735665610542,0.9106,3405.3,3404.4,3.09878575]
[1735665610744,3.2078,3405.0,3404.9,0.29423]
[1735665610941,3.50202,3405.0,3404.9,0.29423]
[1735665611142,3.2078,3405.0,3404.9,0.29423]
[1735665611337,3.2078,3405.0,3404.6,1.193]
[1735665611648,0.74513,3404.9,3404.8,0.29424]
[1735665612149,0.4509,3404.9,3404.8,0.29424]
[1735665615445,6.02180575,3404.9,3404.3,0.29428]
[1735665615646,0.29429,3404.3,3404.1,0.29429]
[1735665615850,0.8739,3404.2,3404.1,0.29429]
[1735665616454,1.16819,3404.2,3404.1,0.29429]
[1735665616748,0.8739,3404.2,3404.1,0.29429]
[1735665617052,1.16819,3404.2,3404.1,0.29429]
[1735665617254,0.29432,3403.9,3403.8,1.48733]
[1735665617646,0.29433,3403.8,3403.6,0.29434]
[1735665617841,3.2078,3404.0,3403.6,0.29434]
[1735665618051,0.4222,3403.7,3403.6,0.29434]
[1735665622756,0.29435,3403.5,3403.4,0.29436]
[1735665623053,3.2078,3403.5,3403.1,1.194]
[1735665623255,0.4434,3403.4,3403.3,0.29437]
[1735665624655,0.4434,3403.4,3403.1,1.194]
[1735665624656,0.73777,3403.4,3403.2,0.29437]
[1735665624853,0.4434,3403.4,3403.3,0.29437]
[1735665626254,0.4434,3403.4,3403.0,1.194]
[1735665626455,0.73777,3403.4,3403.1,0.29439]